[Event "*** Titled Tuesday 3|2 Blitz"]
[Site "Chess.com"]
[Date "2017.05.02"]
[Round "2"]
[White "RobertoJBM"]
[Black "DrVitman"]
[Result "0-1"]
[WhiteElo "2450"]
[BlackElo "2604"]
[TimeControl "180+2"]
[EndTime "13:24:28 PDT"]
[Termination "DrVitman won by resignation"]

1. d4 {[%clk 0:03:02]} 1... d5 {[%clk 0:03:00.5]} 2. c4 {[%clk 0:03:01.9]} 2...
e6 {[%clk 0:03:01.8]} 3. Nc3 {[%clk 0:03:02.4]} 3... Nf6 {[%clk 0:03:02.5]} 4.
Bg5 {[%clk 0:03:02.3]} 4... Nbd7 {[%clk 0:03:02.8]} 5. e3 {[%clk 0:03:03]} 5...
c6 {[%clk 0:03:03.4]} 6. Nf3 {[%clk 0:03:03.7]} 6... Qa5 {[%clk 0:03:04.1]} 7.
Nd2 {[%clk 0:03:03.8]} 7... Bb4 {[%clk 0:03:03.9]} 8. Qc2 {[%clk 0:03:04.5]}
8... O-O {[%clk 0:03:03.3]} 9. a3 {[%clk 0:03:03.5]} 9... e5 {[%clk 0:02:57.4]}
10. dxe5 {[%clk 0:03:01.1]} 10... Ne4 {[%clk 0:02:57.5]} 11. Ndxe4 {[%clk
0:02:53.5]} 11... dxe4 {[%clk 0:02:57.6]} 12. Bf4 {[%clk 0:02:53.3]} 12... Re8
{[%clk 0:02:40]} 13. O-O-O {[%clk 0:02:53]} 13... Bxc3 {[%clk 0:02:40.1]} 14.
Qxc3 {[%clk 0:02:54.9]} 14... Qxc3+ {[%clk 0:02:39.6]} 15. bxc3 {[%clk
0:02:56.8]} 15... h6 {[%clk 0:02:30.5]} 16. h4 {[%clk 0:02:56.3]} 16... Nxe5
{[%clk 0:02:16.4]} 17. Bxe5 {[%clk 0:02:56.5]} 17... Rxe5 {[%clk 0:02:18.3]} 18.
Rd8+ {[%clk 0:02:57.3]} 18... Kh7 {[%clk 0:02:19.7]} 19. Be2 {[%clk 0:02:57.1]}
19... b6 {[%clk 0:02:14.5]} 20. Rhd1 {[%clk 0:02:57.3]} 20... Re7 {[%clk
0:02:12]} 21. R1d6 {[%clk 0:02:49.2]} 21... c5 {[%clk 0:02:04]} 22. h5 {[%clk
0:02:31.6]} 22... f5 {[%clk 0:01:19.4]} 23. g4 {[%clk 0:02:29.6]} 23... fxg4
{[%clk 0:01:12.8]} 24. Bxg4 {[%clk 0:02:31.5]} 24... Bxg4 {[%clk 0:01:13.7]} 25.
Rxa8 {[%clk 0:02:33]} 25... Bxh5 {[%clk 0:01:15.2]} 26. Rad8 {[%clk 0:02:29]}
26... Bg4 {[%clk 0:01:06.9]} 27. Rf8 {[%clk 0:02:24.8]} 27... h5 {[%clk
0:01:05.5]} 28. a4 {[%clk 0:02:22]} 28... Be2 {[%clk 0:00:50.6]} 29. a5 {[%clk
0:02:12.6]} 29... bxa5 {[%clk 0:00:48.8]} 30. Rd5 {[%clk 0:02:13.7]} 30... a4
{[%clk 0:00:41.8]} 31. Rxc5 {[%clk 0:02:13.1]} 31... Kg6 {[%clk 0:00:33.3]} 32.
Kd2 {[%clk 0:02:03.6]} 32... Bf3 {[%clk 0:00:34.2]} 33. Rff5 {[%clk 0:01:57.5]}
33... a3 {[%clk 0:00:31.3]} 34. Ra5 {[%clk 0:01:54.1]} 34... a2 {[%clk
0:00:32.3]} 35. Rg5+ {[%clk 0:01:53.4]} 35... Kh6 {[%clk 0:00:29.3]} 36. Rgd5
{[%clk 0:01:51.1]} 36... h4 {[%clk 0:00:30.2]} 37. Rd6+ {[%clk 0:01:48.4]} 37...
g6 {[%clk 0:00:30.4]} 38. Rxa2 {[%clk 0:01:49.9]} 38... h3 {[%clk 0:00:31.2]}
39. Raa6 {[%clk 0:01:48.8]} 39... Rg7 {[%clk 0:00:31.9]} 40. c5 {[%clk
0:01:13.3]} 40... h2 {[%clk 0:00:31.9]} 41. Ra1 {[%clk 0:01:12.7]} 41... h1=Q
{[%clk 0:00:32.5]} 42. Rxh1+ {[%clk 0:01:12.6]} 42... Bxh1 {[%clk 0:00:34.4]}
43. c6 {[%clk 0:01:14.1]} 43... Rc7 {[%clk 0:00:35.8]} 44. c4 {[%clk 0:01:14.8]}
44... Bg2 {[%clk 0:00:29.9]} 45. Kc3 {[%clk 0:01:15.4]} 45... a5 {[%clk
0:00:29.2]} 46. Kd4 {[%clk 0:01:14]} 46... a4 {[%clk 0:00:30.2]} 47. Kc5 {[%clk
0:01:14.8]} 47... a3 {[%clk 0:00:31.7]} 48. Kb6 {[%clk 0:01:10.4]} 48... Rc8
{[%clk 0:00:27.4]} 49. Kb7 {[%clk 0:01:11]} 49... Bh3 {[%clk 0:00:25.6]} 50. Rd1
{[%clk 0:01:05.5]} 50... Bf5 {[%clk 0:00:21.5]} 51. Ra1 {[%clk 0:01:03.4]} 51...
Kg5 {[%clk 0:00:23]} 52. Rxa3 {[%clk 0:01:04.3]} 52... Kg4 {[%clk 0:00:24.6]}
53. Ra5 {[%clk 0:01:04.7]} 53... Re8 {[%clk 0:00:23.1]} 54. Rxf5 {[%clk
0:01:00.2]} 54... gxf5 {[%clk 0:00:23.3]} 55. c7 {[%clk 0:01:02.1]} 55... Kf3
{[%clk 0:00:24.3]} 56. c8=Q {[%clk 0:01:02.3]} 56... Rxc8 {[%clk 0:00:25.6]} 57.
Kxc8 {[%clk 0:01:04.2]} 57... Kxf2 {[%clk 0:00:27]} 58. c5 {[%clk 0:01:06.1]}
58... f4 {[%clk 0:00:27.1]} 59. c6 {[%clk 0:01:08]} 59... fxe3 {[%clk
0:00:27.9]} 60. c7 {[%clk 0:01:09.9]} 60... e2 {[%clk 0:00:29.4]} 61. Kb8 {[%clk
0:01:08.2]} 61... e1=Q {[%clk 0:00:30.4]} 62. c8=Q {[%clk 0:01:10.1]} 62... Qb4+
{[%clk 0:00:31.2]} 63. Ka7 {[%clk 0:01:10.8]} 63... Qd4+ {[%clk 0:00:31.3]} 64.
Kb7 {[%clk 0:01:11.5]} 64... e3 {[%clk 0:00:31.5]} 65. Qf5+ {[%clk 0:01:10.4]}
65... Ke1 {[%clk 0:00:31.2]} 66. Qb1+ {[%clk 0:01:10.9]} 66... Kd2 {[%clk
0:00:31.6]} 67. Qa2+ {[%clk 0:01:11]} 67... Kc1 {[%clk 0:00:30.8]} 68. Qe6
{[%clk 0:01:08.6]} 68... Qb2+ {[%clk 0:00:29.1]} 69. Ka7 {[%clk 0:01:05.4]}
69... e2 {[%clk 0:00:29.6]} 70. Qe3+ {[%clk 0:01:04.9]} 70... Kb1 {[%clk
0:00:27.5]} 71. Qe4+ {[%clk 0:01:03.1]} 71... Ka1 {[%clk 0:00:27.8]} 72. Qh1+
{[%clk 0:00:35.5]} 72... Qb1 {[%clk 0:00:23.2]} 73. Qh8+ {[%clk 0:00:33.4]}
73... Ka2 {[%clk 0:00:23.7]} 74. Qg8+ {[%clk 0:00:30.5]} 74... Qb3 {[%clk
0:00:24.6]} 75. Qg1 {[%clk 0:00:25.1]} 75... Qa3+ {[%clk 0:00:20.3]} 76. Kb7
{[%clk 0:00:26]} 76... Qb4+ {[%clk 0:00:21.7]} 77. Ka6 {[%clk 0:00:22.3]} 77...
e1=Q {[%clk 0:00:22]} 78. Qg8+ {[%clk 0:00:19.3]} 78... Ka1 {[%clk 0:00:21.7]}
79. Qg7+ {[%clk 0:00:20]} 79... Qbc3 {[%clk 0:00:21.7]} 0-1

[Event "*** Titled Tuesday 3|2 Blitz"]
[Site "Chess.com"]
[Date "2017.05.02"]
[Round "2"]
[White "chessdude"]
[Black "bilelou"]
[Result "1-0"]
[WhiteElo "2430"]
[BlackElo "2386"]
[TimeControl "180+2"]
[EndTime "13:24:53 PDT"]
[Termination "chessdude won by resignation"]

1. e4 {[%clk 0:03:02]} 1... c5 {[%clk 0:03:00]} 2. Nf3 {[%clk 0:03:02.8]} 2...
d6 {[%clk 0:03:00.5]} 3. d4 {[%clk 0:03:03.7]} 3... cxd4 {[%clk 0:03:02.2]} 4.
Nxd4 {[%clk 0:03:05.6]} 4... Nf6 {[%clk 0:03:03.8]} 5. Nc3 {[%clk 0:03:07.1]}
5... a6 {[%clk 0:03:05.4]} 6. h4 {[%clk 0:03:08.2]} 6... Nc6 {[%clk 0:03:01.8]}
7. h5 {[%clk 0:03:08]} 7... Bg4 {[%clk 0:02:40.9]} 8. Be2 {[%clk 0:03:03.8]}
8... Bxe2 {[%clk 0:02:41.7]} 9. Ndxe2 {[%clk 0:02:59.6]} 9... h6 {[%clk
0:02:39.8]} 10. Be3 {[%clk 0:02:50.9]} 10... e6 {[%clk 0:02:32.4]} 11. Qd2
{[%clk 0:02:42.3]} 11... Be7 {[%clk 0:02:31.7]} 12. f3 {[%clk 0:02:39.8]} 12...
b5 {[%clk 0:02:31.6]} 13. Nd4 {[%clk 0:02:38.6]} 13... Ne5 {[%clk 0:02:31.7]}
14. b3 {[%clk 0:02:37.9]} 14... Qa5 {[%clk 0:02:15.2]} 15. Nce2 {[%clk
0:02:35.2]} 15... Qc7 {[%clk 0:02:10.4]} 16. a4 {[%clk 0:02:34.1]} 16... bxa4
{[%clk 0:02:10.6]} 17. Rxa4 {[%clk 0:02:34.5]} 17... O-O {[%clk 0:02:10]} 18.
Nf4 {[%clk 0:02:29.5]} 18... Rfc8 {[%clk 0:01:59.8]} 19. Rh3 {[%clk 0:02:24.8]}
19... Ne8 {[%clk 0:01:43.7]} 20. Nfe2 {[%clk 0:02:21.1]} 20... Nd7 {[%clk
0:01:36.6]} 21. Bxh6 {[%clk 0:02:10.5]} 21... gxh6 {[%clk 0:00:49]} 22. Qxh6
{[%clk 0:02:09.3]} 22... Bf8 {[%clk 0:00:50.3]} 23. Rg3+ {[%clk 0:02:07.6]}
23... Bg7 {[%clk 0:00:51.6]} 24. Qg5 {[%clk 0:01:55.6]} 24... Kf8 {[%clk
0:00:50.5]} 25. h6 {[%clk 0:01:53.8]} 25... Bf6 {[%clk 0:00:51]} 26. Qg8+ {[%clk
0:01:49.4]} 26... Ke7 {[%clk 0:00:52.2]} 27. h7 {[%clk 0:01:44.3]} 27... Bh4
{[%clk 0:00:25.6]} 28. h8=Q {[%clk 0:01:35]} 28... Nef6 {[%clk 0:00:26.6]} 29.
Qxf7+ {[%clk 0:01:29.6]} 29... Kxf7 {[%clk 0:00:17.1]} 30. Qxh4 {[%clk 0:01:07]}
30... Rh8 {[%clk 0:00:16.9]} 31. Qg5 {[%clk 0:00:59.1]} 31... Rag8 {[%clk
0:00:17]} 32. Qd2 {[%clk 0:00:57.6]} 32... Rxg3 {[%clk 0:00:17.7]} 33. Nxg3
{[%clk 0:00:59.5]} 33... d5 {[%clk 0:00:19.3]} 34. Nde2 {[%clk 0:00:44.7]} 34...
dxe4 {[%clk 0:00:17.6]} 35. Nxe4 {[%clk 0:00:43.6]} 35... Rh1+ {[%clk
0:00:17.5]} 36. Kf2 {[%clk 0:00:44.4]} 36... Qb6+ {[%clk 0:00:15.3]} 37. Qd4
{[%clk 0:00:38.3]} 37... Qxd4+ {[%clk 0:00:14.8]} 38. Rxd4 {[%clk 0:00:37.8]}
38... Nxe4+ {[%clk 0:00:16]} 39. Rxe4 {[%clk 0:00:39.7]} 39... Ra1 {[%clk
0:00:15.3]} 40. Rf4+ {[%clk 0:00:39.8]} 40... Ke7 {[%clk 0:00:15.6]} 41. Rc4
{[%clk 0:00:38.2]} 41... Ra2 {[%clk 0:00:16.5]} 42. Nc1 {[%clk 0:00:38.1]} 42...
Rb2 {[%clk 0:00:16.8]} 43. Nd3 {[%clk 0:00:39.4]} 43... Ra2 {[%clk 0:00:18.2]}
44. g4 {[%clk 0:00:38.9]} 44... Nb6 {[%clk 0:00:18.6]} 45. Rc6 {[%clk
0:00:39.9]} 45... Nd5 {[%clk 0:00:19.2]} 46. g5 {[%clk 0:00:39.7]} 46... a5
{[%clk 0:00:20.6]} 47. f4 {[%clk 0:00:37.9]} 47... a4 {[%clk 0:00:21.9]} 48.
bxa4 {[%clk 0:00:36.8]} 48... Rxa4 {[%clk 0:00:23.3]} 49. Kf3 {[%clk 0:00:38.4]}
49... Kf7 {[%clk 0:00:23.7]} 50. Rd6 {[%clk 0:00:37.9]} 50... Ke7 {[%clk
0:00:24.8]} 51. Rc6 {[%clk 0:00:39.1]} 51... Kf7 {[%clk 0:00:25.4]} 52. Rc8
{[%clk 0:00:40]} 52... Ra3 {[%clk 0:00:25.4]} 53. Rb8 {[%clk 0:00:34.3]} 53...
Rc3 {[%clk 0:00:25.4]} 54. Ke4 {[%clk 0:00:32.7]} 54... Rxc2 {[%clk 0:00:24.1]}
55. Ne5+ {[%clk 0:00:30.1]} 55... Ke7 {[%clk 0:00:25.4]} 56. Rb7+ {[%clk
0:00:30]} 56... Kd6 {[%clk 0:00:26.7]} 57. Rd7+ {[%clk 0:00:28.5]} 57... Kc5
{[%clk 0:00:26.8]} 58. Nd3+ {[%clk 0:00:28.1]} 58... Kc4 {[%clk 0:00:25.2]} 59.
Ne5+ {[%clk 0:00:29.5]} 59... Kc5 {[%clk 0:00:26.2]} 60. Rd8 {[%clk 0:00:20.1]}
60... Re2+ {[%clk 0:00:25.5]} 61. Kf3 {[%clk 0:00:21.1]} 61... Re3+ {[%clk
0:00:26.4]} 62. Kg4 {[%clk 0:00:22.6]} 62... Re4 {[%clk 0:00:27.3]} 63. Rf8
{[%clk 0:00:22.9]} 63... Kd6 {[%clk 0:00:24]} 64. g6 {[%clk 0:00:20.8]} 64...
Ne7 {[%clk 0:00:15.6]} 65. g7 {[%clk 0:00:19.4]} 65... Re1 {[%clk 0:00:16.8]}
66. Nf7+ {[%clk 0:00:20.3]} 66... Kc5 {[%clk 0:00:16]} 67. Ng5 {[%clk
0:00:21.8]} 67... Rg1+ {[%clk 0:00:15.7]} 68. Kf3 {[%clk 0:00:23]} 68... Rf1+
{[%clk 0:00:16.2]} 69. Ke4 {[%clk 0:00:23]} 69... Re1+ {[%clk 0:00:17.4]} 70.
Kd3 {[%clk 0:00:23.8]} 70... Rd1+ {[%clk 0:00:18.3]} 71. Ke2 {[%clk 0:00:24.4]}
71... Ra1 {[%clk 0:00:18.8]} 72. Nxe6+ {[%clk 0:00:25.2]} 72... Kd5 {[%clk
0:00:19.4]} 73. Ng5 {[%clk 0:00:25.6]} 73... Ra2+ {[%clk 0:00:19.9]} 74. Kf3
{[%clk 0:00:26.9]} 74... Ra3+ {[%clk 0:00:21.2]} 75. Kg4 {[%clk 0:00:28.2]}
75... Ra1 {[%clk 0:00:22.1]} 76. Re8 {[%clk 0:00:29.1]} 76... Rg1+ {[%clk
0:00:23.6]} 77. Kf3 {[%clk 0:00:30.3]} 1-0

[Event "*** Titled Tuesday 3|2 Blitz"]
[Site "Chess.com"]
[Date "2017.05.02"]
[Round "2"]
[White "1lec"]
[Black "arna"]
[Result "1/2-1/2"]
[WhiteElo "2062"]
[BlackElo "2097"]
[TimeControl "180+2"]
[EndTime "13:25:30 PDT"]
[Termination "Game drawn by agreement"]

1. e4 {[%clk 0:03:02]} 1... Nf6 {[%clk 0:02:58.5]} 2. e5 {[%clk 0:03:02.7]} 2...
Nd5 {[%clk 0:02:59.5]} 3. c4 {[%clk 0:03:04]} 3... Nb6 {[%clk 0:02:59.8]} 4. d4
{[%clk 0:03:05.2]} 4... d6 {[%clk 0:02:59.1]} 5. exd6 {[%clk 0:03:07.1]} 5...
cxd6 {[%clk 0:02:55.5]} 6. Nc3 {[%clk 0:03:08.1]} 6... g6 {[%clk 0:02:55.4]} 7.
Be3 {[%clk 0:03:09.1]} 7... Bg7 {[%clk 0:02:56.9]} 8. Rc1 {[%clk 0:03:10.3]}
8... O-O {[%clk 0:02:58.4]} 9. b3 {[%clk 0:03:11.6]} 9... e5 {[%clk 0:02:52]}
10. dxe5 {[%clk 0:03:05.9]} 10... dxe5 {[%clk 0:02:53.3]} 11. Qxd8 {[%clk
0:03:03.7]} 11... Rxd8 {[%clk 0:02:55.2]} 12. c5 {[%clk 0:03:05]} 12... N6d7
{[%clk 0:02:47]} 13. Bc4 {[%clk 0:03:05.4]} 13... Nc6 {[%clk 0:02:33.1]} 14. Nf3
{[%clk 0:03:01.6]} 14... h6 {[%clk 0:02:18.9]} 15. Ne4 {[%clk 0:02:44]} 15...
Nf8 {[%clk 0:01:44.4]} 16. Nd6 {[%clk 0:02:37.9]} 16... Ne6 {[%clk 0:01:45.5]}
17. Bxe6 {[%clk 0:02:17.1]} 17... Bxe6 {[%clk 0:01:40.3]} 18. Nxb7 {[%clk
0:02:17.5]} 18... Rd7 {[%clk 0:01:38.3]} 19. Nd6 {[%clk 0:02:12]} 19... Nb4
{[%clk 0:01:36.6]} 20. Ke2 {[%clk 0:01:27.3]} 20... Nxa2 {[%clk 0:01:32.1]} 21.
Ra1 {[%clk 0:01:08.3]} 21... Nc3+ {[%clk 0:01:17]} 22. Kd2 {[%clk 0:01:07.4]}
22... Ne4+ {[%clk 0:01:04.6]} 23. Ke2 {[%clk 0:01:08.5]} 23... Nxd6 {[%clk
0:00:59.6]} 24. cxd6 {[%clk 0:01:10.4]} 24... Rxd6 {[%clk 0:00:41.3]} 25. Rxa7
{[%clk 0:01:01.1]} 25... Rxa7 {[%clk 0:00:40.3]} 26. Bxa7 {[%clk 0:01:03]} 26...
Bxb3 {[%clk 0:00:41.1]} 27. Nd2 {[%clk 0:00:54.6]} 27... Bc2 {[%clk 0:00:36.2]}
28. Rc1 {[%clk 0:00:50.5]} 28... Bd3+ {[%clk 0:00:35]} 29. Ke1 {[%clk
0:00:48.7]} 29... Ra6 {[%clk 0:00:22.8]} 30. Bc5 {[%clk 0:00:38.1]} 30... h5
{[%clk 0:00:15.5]} 31. Nf3 {[%clk 0:00:32]} 31... Ra2 {[%clk 0:00:12.6]} 32. Ng1
{[%clk 0:00:20.5]} 32... Bh6 {[%clk 0:00:12.5]} 33. Rd1 {[%clk 0:00:20.5]} 33...
e4 {[%clk 0:00:08]} 34. Bb4 {[%clk 0:00:11.9]} 34... Bg7 {[%clk 0:00:07.2]} 35.
Bd2 {[%clk 0:00:12.3]} 35... Bf6 {[%clk 0:00:07.5]} 36. Be3 {[%clk 0:00:12.6]}
36... Bc3+ {[%clk 0:00:08]} 37. Bd2 {[%clk 0:00:13.9]} 37... Bd4 {[%clk
0:00:07.6]} 38. Nh3 {[%clk 0:00:12.1]} 38... Kg7 {[%clk 0:00:05.7]} 39. Nf4
{[%clk 0:00:12.4]} 39... Bc2 {[%clk 0:00:07.2]} 40. Rc1 {[%clk 0:00:11.6]} 40...
h4 {[%clk 0:00:07]} 41. Ne2 {[%clk 0:00:12.2]} 41... Be5 {[%clk 0:00:07.6]} 42.
g3 {[%clk 0:00:12.7]} 42... h3 {[%clk 0:00:08.3]} 43. Nf4 {[%clk 0:00:10.2]}
43... Bxf4 {[%clk 0:00:09]} 44. Bxf4 {[%clk 0:00:11.1]} 44... Bd3 {[%clk
0:00:10.9]} 45. Be3 {[%clk 0:00:09.8]} 45... Re2+ {[%clk 0:00:11.2]} 46. Kd1
{[%clk 0:00:11.2]} 46... Kf6 {[%clk 0:00:10.7]} 47. Rc5 {[%clk 0:00:12.2]} 47...
Ra2 {[%clk 0:00:11.1]} 48. Bg5+ {[%clk 0:00:12.1]} 48... Ke6 {[%clk 0:00:12.7]}
49. Be3 {[%clk 0:00:13.2]} 49... Kd6 {[%clk 0:00:12.5]} 50. Rc1 {[%clk
0:00:12.7]} 50... f5 {[%clk 0:00:12.2]} 51. Bf4+ {[%clk 0:00:12.9]} 51... Kd5
{[%clk 0:00:13.6]} 52. Be3 {[%clk 0:00:14.2]} 52... Be2+ {[%clk 0:00:14.6]} 53.
Ke1 {[%clk 0:00:15.1]} 53... Bc4 {[%clk 0:00:14.4]} 54. Rd1+ {[%clk 0:00:14.6]}
54... Bd3 {[%clk 0:00:15.5]} 55. Rc1 {[%clk 0:00:16]} 55... Bc2 {[%clk
0:00:16.2]} 56. Kd2 {[%clk 0:00:10.8]} 56... Bd3+ {[%clk 0:00:11.6]} 57. Ke1
{[%clk 0:00:11.8]} 57... Re2+ {[%clk 0:00:11.9]} 58. Kd1 {[%clk 0:00:13.2]}
58... f4 {[%clk 0:00:11.3]} 59. gxf4 {[%clk 0:00:12.6]} 59... Ke6 {[%clk
0:00:10.6]} 60. Rc5 {[%clk 0:00:12.2]} 60... Ra2 {[%clk 0:00:10.3]} 61. Bd4
{[%clk 0:00:08.4]} 61... Kd6 {[%clk 0:00:08.4]} 62. Rc1 {[%clk 0:00:07.4]} 62...
Be2+ {[%clk 0:00:07.9]} 63. Ke1 {[%clk 0:00:08.3]} 63... Bf3 {[%clk 0:00:09.4]}
64. Be3 {[%clk 0:00:06.1]} 64... Ke6 {[%clk 0:00:10]} 65. Rc5 {[%clk 0:00:05.8]}
65... Ra8 {[%clk 0:00:09.3]} 66. Re5+ {[%clk 0:00:06]} 66... Kf6 {[%clk
0:00:10.3]} 67. Rc5 {[%clk 0:00:07.3]} 67... Rd8 {[%clk 0:00:10.7]} 68. Rc1
{[%clk 0:00:07.5]} 68... Kf5 {[%clk 0:00:12.2]} 69. Kf1 {[%clk 0:00:07.8]} 69...
Kg4 {[%clk 0:00:11.7]} 70. Kg1 {[%clk 0:00:07.7]} 70... Rd5 {[%clk 0:00:11.9]}
71. Re1 {[%clk 0:00:07.4]} 71... Rb5 {[%clk 0:00:11.7]} 72. Rc1 {[%clk
0:00:08.3]} 72... Rb2 {[%clk 0:00:12.4]} 73. Kf1 {[%clk 0:00:09]} 73... Ra2
{[%clk 0:00:13.2]} 74. Kg1 {[%clk 0:00:10.1]} 74... Bg2 {[%clk 0:00:13.7]} 75.
Re1 {[%clk 0:00:10.6]} 75... Bf3 {[%clk 0:00:13.6]} 76. Rc1 {[%clk 0:00:11.5]}
76... Be2 {[%clk 0:00:14.6]} 77. Re1 {[%clk 0:00:12]} 77... Kf3 {[%clk
0:00:15.8]} 78. Rc1 {[%clk 0:00:13]} 78... Bd3 {[%clk 0:00:13.4]} 79. Re1 {[%clk
0:00:13.6]} 79... Rc2 {[%clk 0:00:14]} 80. Rd1 {[%clk 0:00:13.5]} 80... Re2
{[%clk 0:00:14.9]} 81. Ra1 {[%clk 0:00:10.5]} 81... Rxe3 {[%clk 0:00:15.4]} 82.
fxe3 {[%clk 0:00:11.9]} 82... Kxe3 {[%clk 0:00:17.3]} 83. Rc1 {[%clk 0:00:04.1]}
83... Kxf4 {[%clk 0:00:14.8]} 84. Kf2 {[%clk 0:00:04.4]} 84... e3+ {[%clk
0:00:16.1]} 85. Ke1 {[%clk 0:00:05.5]} 85... Kf3 {[%clk 0:00:13.2]} 86. Rc6
{[%clk 0:00:05.9]} 86... Kg2 {[%clk 0:00:12.7]} 87. Re6 {[%clk 0:00:04.9]} 87...
Kxh2 {[%clk 0:00:12.2]} 88. Rxe3 {[%clk 0:00:05.6]} 88... Bf5 {[%clk 0:00:14.1]}
89. Kf2 {[%clk 0:00:06.6]} 89... Kh1 {[%clk 0:00:07.5]} 90. Re1+ {[%clk
0:00:06.2]} 90... Kh2 {[%clk 0:00:08.3]} 91. Rg1 {[%clk 0:00:07.2]} 91... Be4
{[%clk 0:00:07.4]} 92. Rg3 {[%clk 0:00:07.5]} 92... Bf5 {[%clk 0:00:07.5]} 93.
Rg1 {[%clk 0:00:08.2]} 93... Be4 {[%clk 0:00:08.6]} 94. Rg3 {[%clk 0:00:09.4]}
1/2-1/2

[Event "*** Titled Tuesday 3|2 Blitz"]
[Site "Chess.com"]
[Date "2017.05.02"]
[Round "3"]
[White "TricksOnly"]
[Black "Hikaru"]
[Result "0-1"]
[WhiteElo "2382"]
[BlackElo "2868"]
[TimeControl "180+2"]
[EndTime "13:28:17 PDT"]
[Termination "Hikaru won by resignation"]

1. e4 {[%clk 0:03:02]} 1... c5 {[%clk 0:03:00.2]} 2. Nf3 {[%clk 0:03:03]} 2...
Nc6 {[%clk 0:03:00.6]} 3. Bb5 {[%clk 0:03:02.1]} 3... g6 {[%clk 0:03:01]} 4.
Bxc6 {[%clk 0:03:02.8]} 4... bxc6 {[%clk 0:03:02.9]} 5. O-O {[%clk 0:03:02.5]}
5... Bg7 {[%clk 0:03:04.5]} 6. Re1 {[%clk 0:02:58.8]} 6... Nh6 {[%clk
0:03:04.9]} 7. c3 {[%clk 0:02:57.5]} 7... O-O {[%clk 0:03:05.6]} 8. d4 {[%clk
0:02:57.4]} 8... cxd4 {[%clk 0:03:07.5]} 9. cxd4 {[%clk 0:02:58.2]} 9... d5
{[%clk 0:03:09]} 10. e5 {[%clk 0:02:57.9]} 10... f6 {[%clk 0:03:10.5]} 11. h3
{[%clk 0:02:49]} 11... fxe5 {[%clk 0:03:06.3]} 12. Nxe5 {[%clk 0:02:49.4]} 12...
Qb6 {[%clk 0:03:06.4]} 13. Nc3 {[%clk 0:02:44.1]} 13... Nf5 {[%clk 0:03:06.1]}
14. Na4 {[%clk 0:02:09.7]} 14... Qxd4 {[%clk 0:03:00.7]} 15. Nxc6 {[%clk
0:02:09.8]} 15... Qxd1 {[%clk 0:03:01]} 16. Rxd1 {[%clk 0:02:07.7]} 16... Bd7
{[%clk 0:03:02]} 0-1

[Event "*** Titled Tuesday 3|2 Blitz"]
[Site "Chess.com"]
[Date "2017.05.02"]
[Round "3"]
[White "GameOverBro"]
[Black "Robin-Side"]
[Result "0-1"]
[WhiteElo "2295"]
[BlackElo "2263"]
[TimeControl "180+2"]
[EndTime "13:29:39 PDT"]
[Termination "Robin-Side won by resignation"]

1. e4 {[%clk 0:02:58.3]} 1... c5 {[%clk 0:03:00.9]} 2. Ne2 {[%clk 0:02:58.9]}
2... Nc6 {[%clk 0:03:01.8]} 3. d4 {[%clk 0:02:58]} 3... cxd4 {[%clk 0:03:02.9]}
4. Nxd4 {[%clk 0:02:59.9]} 4... e5 {[%clk 0:03:04.1]} 5. Nxc6 {[%clk 0:03:00.9]}
5... bxc6 {[%clk 0:03:05]} 6. Bd3 {[%clk 0:03:02.8]} 6... Nf6 {[%clk 0:03:06.3]}
7. Qe2 {[%clk 0:03:04.1]} 7... Bc5 {[%clk 0:03:03.7]} 8. O-O {[%clk 0:03:04.7]}
8... O-O {[%clk 0:03:04.8]} 9. Nd2 {[%clk 0:03:06.1]} 9... Qc7 {[%clk
0:02:57.7]} 10. Kh1 {[%clk 0:03:04.6]} 10... d5 {[%clk 0:02:56.6]} 11. b3 {[%clk
0:02:58.4]} 11... Bd4 {[%clk 0:02:54.6]} 12. Rb1 {[%clk 0:02:57.3]} 12... a5
{[%clk 0:02:54.7]} 13. a4 {[%clk 0:02:56.2]} 13... Re8 {[%clk 0:02:48.7]} 14.
Nf3 {[%clk 0:02:29.9]} 14... Bc3 {[%clk 0:02:47.3]} 15. Nh4 {[%clk 0:02:28.6]}
15... Nxe4 {[%clk 0:02:34.4]} 16. Bxe4 {[%clk 0:02:27.4]} 16... dxe4 {[%clk
0:02:35.4]} 17. Qxe4 {[%clk 0:02:24.5]} 17... Ba6 {[%clk 0:02:33.8]} 18. Rd1
{[%clk 0:02:18.7]} 18... Rad8 {[%clk 0:02:33.8]} 19. Be3 {[%clk 0:02:08.4]}
19... Rxd1+ {[%clk 0:02:30.5]} 20. Rxd1 {[%clk 0:02:08.4]} 20... Rd8 {[%clk
0:02:31.2]} 21. Rxd8+ {[%clk 0:02:05.7]} 21... Qxd8 {[%clk 0:02:32]} 22. g3
{[%clk 0:02:01.2]} 22... Qd1+ {[%clk 0:02:28.5]} 23. Kg2 {[%clk 0:02:02]} 23...
Bf1+ {[%clk 0:02:29.3]} 0-1

[Event "*** Titled Tuesday 3|2 Blitz"]
[Site "Chess.com"]
[Date "2017.05.02"]
[Round "3"]
[White "evgenyermolaev"]
[Black "joppie2"]
[Result "0-1"]
[WhiteElo "2356"]
[BlackElo "2530"]
[TimeControl "180+2"]
[EndTime "13:30:39 PDT"]
[Termination "joppie2 won by resignation"]

1. e4 {[%clk 0:03:02]} 1... c5 {[%clk 0:02:59.2]} 2. Nf3 {[%clk 0:03:02.9]} 2...
e6 {[%clk 0:03:00.2]} 3. d4 {[%clk 0:03:04]} 3... cxd4 {[%clk 0:03:02.1]} 4.
Nxd4 {[%clk 0:03:05.4]} 4... Nc6 {[%clk 0:03:03.2]} 5. Nc3 {[%clk 0:03:06.3]}
5... Qc7 {[%clk 0:03:04.5]} 6. f4 {[%clk 0:03:06.8]} 6... a6 {[%clk 0:03:04.7]}
7. Nxc6 {[%clk 0:03:06.2]} 7... Qxc6 {[%clk 0:03:04.9]} 8. Bd3 {[%clk 0:03:07]}
8... b5 {[%clk 0:03:06.1]} 9. Qe2 {[%clk 0:02:50.9]} 9... Bb7 {[%clk 0:02:57.6]}
10. Bd2 {[%clk 0:02:50.9]} 10... Bc5 {[%clk 0:02:55.5]} 11. O-O-O {[%clk
0:02:48.2]} 11... Ne7 {[%clk 0:02:54.4]} 12. a3 {[%clk 0:02:15.8]} 12... O-O
{[%clk 0:02:53.9]} 13. Be3 {[%clk 0:01:59.6]} 13... Rac8 {[%clk 0:02:51.7]} 14.
Bxc5 {[%clk 0:01:51.4]} 14... Qxc5 {[%clk 0:02:52.3]} 15. e5 {[%clk 0:01:52.5]}
15... b4 {[%clk 0:02:45.9]} 16. Ne4 {[%clk 0:01:46.8]} 16... Qa5 {[%clk
0:02:10.6]} 17. axb4 {[%clk 0:01:10.6]} 17... Qa1+ {[%clk 0:02:08.5]} 18. Kd2
{[%clk 0:01:11.5]} 18... Qxb2 {[%clk 0:02:08.6]} 19. Rb1 {[%clk 0:01:12.3]}
19... Qd4 {[%clk 0:02:05.8]} 20. Qe3 {[%clk 0:00:51.3]} 20... Rxc2+ {[%clk
0:02:06.6]} 0-1

[Event "*** Titled Tuesday 3|2 Blitz"]
[Site "Chess.com"]
[Date "2017.05.02"]
[Round "3"]
[White "metalbattler"]
[Black "cailinchetty"]
[Result "1-0"]
[WhiteElo "2034"]
[BlackElo "1917"]
[TimeControl "180+2"]
[EndTime "13:30:49 PDT"]
[Termination "metalbattler won by resignation"]

1. e4 {[%clk 0:03:02]} 1... c5 {[%clk 0:03:01.3]} 2. Nc3 {[%clk 0:03:02.9]} 2...
Nc6 {[%clk 0:03:02.4]} 3. Bb5 {[%clk 0:03:01.7]} 3... Nd4 {[%clk 0:03:01.8]} 4.
Nf3 {[%clk 0:03:00.8]} 4... g6 {[%clk 0:03:00.7]} 5. d3 {[%clk 0:03:00]} 5...
Bg7 {[%clk 0:03:00.9]} 6. O-O {[%clk 0:02:57.6]} 6... Nxb5 {[%clk 0:02:55]} 7.
Nxb5 {[%clk 0:02:59.5]} 7... d6 {[%clk 0:02:55.1]} 8. Bg5 {[%clk 0:02:52.3]}
8... Bxb2 {[%clk 0:02:51.3]} 9. Rb1 {[%clk 0:02:52.7]} 9... Bg7 {[%clk 0:02:52]}
10. d4 {[%clk 0:02:51.4]} 10... a6 {[%clk 0:02:50.9]} 11. Nc3 {[%clk 0:02:48.2]}
11... Qa5 {[%clk 0:02:46.3]} 12. Nd5 {[%clk 0:02:39.5]} 12... b5 {[%clk
0:02:40.4]} 13. dxc5 {[%clk 0:02:36.5]} 13... dxc5 {[%clk 0:02:39.2]} 14. Bf4
{[%clk 0:02:27]} 14... Ra7 {[%clk 0:02:35.3]} 15. Ne5 {[%clk 0:02:09]} 15... Bb7
{[%clk 0:02:17.2]} 16. c4 {[%clk 0:01:24.5]} 16... e6 {[%clk 0:01:54.3]} 17. Nb6
{[%clk 0:01:03.5]} 17... Qxb6 {[%clk 0:01:44.5]} 18. Qd7+ {[%clk 0:01:00.5]} 1-0